[Event "4NCL Div 1 2024-25"]
[Site "England"]
[Date "2025.01.26"]
[Round "4.43"]
[White "Panjwani, Raja"]
[Black "Villiers, Thomas"]
[Result "1/2-1/2"]
[Annotator "TA"]
[ECO "B01"]
[WhiteElo "2448"]
[BlackElo "2182"]
[PlyCount "55"]
[EventDate "2024.11.23"]
[EventType "team-tourn"]
[EventCountry "ENG"]
[SourceTitle "playchess.com"]
[Source "ChessBase"]
[SourceQuality "1"]
[TimeControl "40/6000+30:3000+30"]

{[%evp 18,55,54,43,84,72,60,57,57,57,91,62,72,72,84,64,100,75,104,85,132,158,141,116,156,87,97,82,139,33,25,17,18,7,77,88,171,21,748,705]} 1. e4 {[%emt 0:10:03]} d5 {[%emt 0:10:01]} 2. exd5 {[%emt 0:00:12]} Nf6 {[%emt 0:00:05]} 3. Nf3 {[%emt 0:00:12]} Qxd5 {[%emt 0:00:12]} 4. Nc3 {[%emt 0:00:21]} Qa5 {[%emt 0:00:05]} 5. d4 {[%emt 0:00:15]} Bg4 {[%emt 0:00:08][%cal Bc8g4,Bg4h5,Bh5g6][%mdl 32]} 6. h3 {[%emt 0:04:56]} Bh5 {[%emt 0:00:08]} 7. g4 {[%emt 0:02:23]} Bg6 {[%emt 0:00:04]} 8. Ne5 {[%emt 0:00:29]} c6 {[%emt 0:00:17][%cal Bc7c6,Bc6d5][%mdl 32]} 9. Bc4 {[%emt 0:15:56]} e6 {[%emt 0:00:39] 9...Nbd7 is the modern continuation.} 10. h4 {[%emt 0:01:11]} Be4 {[%emt 0:00:26] B01: Scandinavian Defence.} 11. O-O {[%emt 0:01:31]} Bd5 {[%emt 0:00:01]} 12. Nxd5 {[%emt 0:00:36]} cxd5 {[%emt 0:00:06] White is slightly better.} 13. Bd3 {[%emt 0:00:33]} Be7 $146 {[%emt 0:00:29]} (13... Nc6 14. Nxc6 bxc6 15. Bf4 Qd8 16. g5 Bd6 17. Bxd6 Qxd6 18. gxf6 Qf4 19. Re1 gxf6 20. Kf1 Qxh4 {1-0 Leniart,A (2476)-Grimm,D (2300) Mirandela op 3rd 2022 (2)}) 14. c3 {[%emt 0:12:19]} Nbd7 {[%emt 0:00:25]} 15. Nxd7 {[%emt 0:03:07]} (15. f4 {is interesting.} Ne4 16. g5 h6 17. Qh5) 15... Nxd7 {[%emt 0:00:03]} 16. h5 {[%emt 0:01:22]} b5 {[%emt 0:01:34]} 17. b4 {[%emt 0:04:57]} Qb6 {[%emt 0:00:06]} 18. a4 {[%emt 0:00:20]} Rc8 {[%emt 0:00:19]} (18... Qc7 $142) 19. Bd2 $16 {[%emt 0:10:31]} bxa4 {[%emt 0:00:07]} 20. Qxa4 {[%emt 0:00:18]} Rc7 {[%emt 0:00:01]} 21. Bb5 {[%emt 0:03:09] White has space advantage and is better White is more active.} (21. Qc2 $142) 21... Bd6 {[%emt 0:00:12]} 22. Rfe1 {[%emt 0:11:02]} Ke7 {[%emt 0:00:03]} (22... h6 $142 23. Kg2 Qb8) 23. Bg5+ {[%emt 0:01:34] This pair of bishops is nice.} (23. g5 $16) 23... Nf6 $14 {[%emt 0:00:08][%cal Oh7h6]} 24. Re3 {[%emt 0:04:43]} h6 {[%emt 0:00:02]} 25. Bh4 $36 {[%emt 0:00:26][%mdl 2048] Black is under pressure.} Bf4 {[%emt 0:00:03]} (25... Rd8 $11) 26. Rf3 $16 {[%emt 0:01:11]} Bd2 {[%emt 0:00:04] [#]} (26... Bd6 $16 {was worth a try.}) 27. Bg3 {[%emt 0:01:32]} (27. Bc6 $1 $18 {b5 would now be deadly.} Rhc8 (27... Rxc6 28. Qxa7+ Qc7 29. b5 $16) (27... Qxc6 $2 {is the wrong capture.} 28. Qxc6 Rxc6 29. Rxa7+ Kf8 30. Rxf6 $18) 28. b5) 27... Rxc3 $2 {[%emt 0:00:06][%mdl 8192]} (27... Rhc8 $11) 28. Qxa7+ {[%emt 0:00:53][%mdl 32768] Weighted Error Value: White=0.30/Black=0.58 An unexpected result.  Loses game:     	---       	Black=1      Mistake:       	White=3     	Black=4      Inaccurate:     	White=1     	Black=4      OK:         	White=7     	Black=3      Best:        	White=1     	Black=1} 1/2-1/2

[Event "4NCL Div 1 2024-25"]
[Site "England"]
[Date "2025.01.26"]
[Round "4.44"]
[White "Macak, Stefan"]
[Black "Taylor, Martin R"]
[Result "1/2-1/2"]
[Annotator "TA"]
[ECO "B04"]
[WhiteElo "2310"]
[BlackElo "2353"]
[PlyCount "27"]
[EventDate "2024.11.23"]
[EventType "team-tourn"]
[EventCountry "ENG"]
[SourceTitle "playchess.com"]
[Source "ChessBase"]
[SourceQuality "1"]
[TimeControl "40/6000+30:3000+30"]

{[%evp 10,27,35,37,38,54,46,52,51,56,54,43,52,6,24,14,6,-7,38,-9]} 1. e4 {[%emt 0:15:32]} Nf6 {[%emt 0:10:12]} 2. e5 {[%emt 0:00:12]} Nd5 {[%emt 0:00:07]} 3. d4 {[%emt 0:00:04]} d6 {[%emt 0:00:13]} 4. Nf3 {[%emt 0:00:12]} dxe5 {[%emt 0:00:39]} 5. Nxe5 {[%emt 0:00:19]} c6 {[%emt 0:00:20]} 6. Be2 {[%emt 0:00:42]} Bf5 {[%emt 0:00:57] B04: Alekhine's Defence: 4 Nf3.} 7. O-O {[%emt 0:00:34]} Nd7 {[%emt 0:00:26]} 8. Nf3 {[%emt 0:00:11]} e6 {[%emt 0:01:09]} 9. c4 {[%emt 0:00:49]} N5f6 {[%emt 0:00:20]} 10. Nc3 {[%emt 0:00:38]} Bd6 {[%emt 0:01:31]} 11. Be3 {[%emt 0:04:31]} (11. Nh4 $14) 11... Ne4 $146 {[%emt 0:27:07]} (11... O-O 12. h3 h6 13. Qb3 Qb6 14. Rfc1 Rfe8 15. Nd2 Qxb3 16. Nxb3 e5 17. Rd1 exd4 18. Nxd4 {1-0 Nihal,S (2648)-Aronyak,G (2494) Junior Speed Qual blitz 2022 (1.39)}) 12. a4 {[%emt 0:01:46]} O-O {[%emt 0:04:49]} 13. a5 {[%emt 0:02:24]} Qe7 {[%emt 0:15:21]} 14. Qa4 {[%emt 0:18:23] Weighted Error Value: White=0.10 (very precise) /Black=0.09 (flawless)   Mistake:       	White=2     	---        Inaccurate:     	---       	Black=1      OK:         	White=2     	Black=3} (14. Bd3 $14 Nxc3 15. bxc3) 1/2-1/2

[Event "4NCL Div 1 2024-25"]
[Site "England"]
[Date "2025.01.26"]
[Round "4.45"]
[White "Cox, John J"]
[Black "Mirzoeva, Elmira"]
[Result "1/2-1/2"]
[Annotator "TA"]
[ECO "A42"]
[WhiteElo "2259"]
[BlackElo "2258"]
[PlyCount "99"]
[EventDate "2024.11.23"]
[EventType "team-tourn"]
[EventCountry "ENG"]
[SourceTitle "playchess.com"]
[Source "ChessBase"]
[SourceQuality "1"]
[TimeControl "40/6000+30:3000+30"]

{[%evp 19,99,14,20,-13,-5,-14,-31,-24,-19,-30,-11,-24,0,0,0,0,18,0,0,0,0,0,43,46,44,53,54,40,57,33,41,0,33,11,29,29,14,10,54,0,0,0,0,0,0,0,0,0,0,0,0,0,0,0,0,0,0,0,0,0,0,0,0,0,0,0,7,0,14,0,0,0,0,0,0,0,0,0,0,0,0,0]} 1. c4 {[%emt 0:17:24]} d6 {[%emt 0:10:14]} 2. Nc3 {[%emt 0:00:31]} e5 {[%emt 0:00:32]} 3. g3 {[%emt 0:00:12]} g6 {[%emt 0:00:41]} 4. Bg2 {[%emt 0:00:06]} Bg7 {[%emt 0:00:05]} 5. e4 {[%emt 0:00:50]} Ne7 {[%emt 0:00:37]} 6. Nge2 {[%emt 0:00:11]} O-O {[%emt 0:00:40]} 7. O-O {[%emt 0:00:22]} Nd7 {[%emt 0:01:17]} 8. d4 {[%emt 0:16:10]} exd4 {[%emt 0:01:22]} 9. Nxd4 {[%emt 0:00:11]} Nc6 {[%emt 0:00:23]} 10. Nxc6 {[%emt 0:03:25]} bxc6 {[%emt 0:00:04]} 11. Be3 {[%emt 0:08:13] A42: Modern Defence: Averbakh Variation.} Ne5 {[%emt 0:04:42]} 12. Bd4 {[%emt 0:19:25]} c5 {[%emt 0:12:46]} 13. Bxe5 {[%emt 0:00:11] Black is slightly better.} Bxe5 {[%emt 0:00:05]} 14. Qd2 {[%emt 0:01:50]} Rb8 {[%emt 0:03:02]} 15. Rad1 $146 {[%emt 0:01:36]} (15. b3 Bb7 16. f4 Bd4+ 17. Kh1 f5 18. exf5 Bxg2+ 19. Kxg2 Rxf5 20. Rae1 Bxc3 21. Qxc3 {½-½ Jermy,J (1713)-Anderson,P (1990) BCF-chT1 S4 (4NCL) online 2021 (3.153)}) 15... Kh8 {[%emt 0:09:45]} 16. b3 {[%emt 0:02:56]} a6 {[%emt 0:06:03]} 17. h3 {[%emt 0:02:17]} f5 {[%emt 0:04:28]} 18. f4 {[%emt 0:02:06]} Bd4+ {[%emt 0:01:21]} 19. Kh2 {[%emt 0:00:08]} fxe4 {[%emt 0:02:03]} 20. Nxe4 {[%emt 0:00:46]} Bd7 {[%emt 0:06:51]} 21. Rde1 {[%emt 0:00:58]} Kg7 {[%emt 0:06:59]} 22. Re2 {[%emt 0:00:29]} h6 {[%emt 0:04:12][%cal Od6d5]} 23. Rfe1 {[%emt 0:01:43]} Rf7 {[%emt 0:05:46]} 24. Nc3 {[%emt 0:03:51]} c6 {[%emt 0:00:27] Prevents Nd5.} 25. Qd3 {[%emt 0:01:57]} Bf5 {[%emt 0:09:04] A strong pair of Bishops.} 26. Be4 {[%emt 0:02:44]} Qf6 {[%emt 0:03:45]} 27. Bxf5 {[%emt 0:06:28]} Qxf5 {[%emt 0:00:26]} 28. Qxf5 {[%emt 0:02:22]} (28. Qf3 {is interesting.} g5 29. Rg2 Qd7 30. Rd1) 28... gxf5 {[%emt 0:00:48]} 29. Nb1 {[%emt 0:02:16]} ({White should try} 29. Na4 $14) 29... a5 $11 {[%emt 0:02:33] The position is equal.} 30. Re6 {[%emt 0:02:38]} Rf6 {[%emt 0:03:25]} 31. Re7+ {[%emt 0:00:14]} Rf7 {[%emt 0:00:05]} 32. R7e6 {[%emt 0:00:06]} a4 {[%emt 0:07:04]} 33. Nd2 {[%emt 0:00:45]} axb3 {[%emt 0:01:30]} 34. Nxb3 {[%emt 0:02:29]} Ra8 {[%emt 0:00:46]} 35. R1e2 {[%emt 0:00:11]} (35. Rxd6 Rxa2+ 36. Kh1 Rb7 37. Nxd4 cxd4) 35... Rf6 {[%emt 0:00:36]} 36. Re7+ {[%emt 0:01:36]} Rf7 {[%emt 0:00:04]} 37. R7e6 {[%emt 0:00:08]} Rfa7 {[%emt 0:03:08]} 38. Rxd6 {[%emt 0:06:58]} Rxa2 {[%emt 0:00:05]} 39. Rd7+ {[%emt 0:02:09]} Kg8 {[%emt 0:01:04]} 40. Rd8+ {[%emt 0:00:47]} Rxd8 {[%emt 0:00:57]} 41. Rxa2 {[%emt 0:23:02][%mdl 4096] Endgame KRB-KRN} Rb8 {[%emt 0:26:23]} 42. Nd2 {[%emt 0:01:31]} Rb4 {[%emt 0:00:47]} 43. Rc2 {[%emt 0:00:44]} Kf7 {[%emt 0:00:47]} 44. Nf3 {[%emt 0:02:08]} h5 {[%emt 0:04:30]} 45. Nh4 {[%emt 0:04:30]} Kf6 {[%emt 0:01:32]} 46. g4 {[%emt 0:03:33]} fxg4 {[%emt 0:02:58]} 47. hxg4 {[%emt 0:00:04]} hxg4 {[%emt 0:00:12] [#] And now ...Rb3 would win.} 48. Kg3 {[%emt 0:00:06]} Rb1 {[%emt 0:01:23]} 49. Kxg4 {[%emt 0:00:43]} Rg1+ {[%emt 0:00:15]} 50. Kf3 {[%emt 0:02:56] Weighted Error Value: White=0.07 (flawless) /Black=0.08 (flawless)   Mistake:       	White=1     	---        Inaccurate:     	White=1     	Black=3      OK:         	White=16    	Black=16     Best:        	White=1     	Black=1} 1/2-1/2

[Event "4NCL Div 1 2024-25"]
[Site "England"]
[Date "2025.01.26"]
[Round "4.46"]
[White "Yoon, Jacob D"]
[Black "Zhao, George"]
[Result "1-0"]
[Annotator "TA"]
[ECO "E48"]
[WhiteElo "2270"]
[BlackElo "2233"]
[PlyCount "85"]
[EventDate "2024.11.23"]
[EventType "team-tourn"]
[EventCountry "ENG"]
[SourceTitle "playchess.com"]
[Source "ChessBase"]
[SourceQuality "1"]
[TimeControl "40/6000+30:3000+30"]

{[%evp 20,85,16,-6,-5,-2,0,4,-7,0,0,-6,-18,-8,0,0,0,0,0,-42,-17,-62,-48,-56,-33,-38,-29,-47,-47,-56,-12,-52,-22,-33,-14,-34,-24,-21,-3,-8,0,-4,0,-17,-11,-12,0,0,0,0,53,53,42,46,47,17,294,289,919,918,888,879,856,847,29991,29992,29996,29997]} 1. d4 {[%emt 0:10:30]} e6 {[%emt 0:10:13]} 2. c4 {[%emt 0:00:26]} Nf6 {[%emt 0:00:29]} 3. Nc3 {[%emt 0:00:17]} Bb4 {[%emt 0:06:41]} 4. e3 {[%emt 0:01:01]} c5 {[%emt 0:00:55]} 5. Bd3 {[%emt 0:00:06]} Nc6 {[%emt 0:02:27]} 6. Nge2 {[%emt 0:00:04]} cxd4 {[%emt 0:00:28]} 7. exd4 {[%emt 0:00:05]} d5 {[%emt 0:02:20]} 8. cxd5 {[%emt 0:00:20]} Nxd5 {[%emt 0:01:30]} 9. O-O {[%emt 0:00:08]} O-O {[%emt 0:00:51]} 10. a3 {[%emt 0:00:16]} Be7 {[%emt 0:01:48]} 11. Bc2 {[%emt 0:07:44]} b6 {[%emt 0:10:40] E48: Nimzo-Indian: Rubinstein: 5 Bd3 d5 including 6 Ne2, but excluding 6 a3.} 12. Qd3 {[%emt 0:03:35][%csl Gc2][%cal Rd3h7] [#] Inhibits Ba6.} g6 {[%emt 0:01:01] A sharp opening} 13. Bh6 {[%emt 0:01:14]} Re8 {[%emt 0:00:16] The position is equal.} 14. Ba4 {[%emt 0:00:06]} Bb7 {[%emt 0:01:23]} 15. Rac1 {[%emt 0:01:01]} Rc8 {[%emt 0:03:24]} 16. Rfd1 {[%emt 0:00:07]} Bg5 $146 {[%emt 0:05:43]} (16... a6 17. b4 Bg5 18. Bxg5 Qxg5 19. Nxd5 Qxd5 20. Nc3 Qg5 21. Qe3 Qxe3 22. fxe3 Red8 {0-1 Guichard,P (2358)-Muzychuk,M (2519) EU-Cup (Women) 27th 2023 (5.1)}) 17. Bxg5 {[%emt 0:00:13]} Qxg5 {[%emt 0:00:08]} 18. Ne4 {[%emt 0:05:31]} Qe7 {[%emt 0:01:03]} 19. Bb3 {[%emt 0:23:47]} Red8 {[%emt 0:10:56]} 20. Qg3 {[%emt 0:00:45]} Nf6 {[%emt 0:04:56]} 21. N4c3 {[%emt 0:04:46]} Na5 {[%emt 0:05:37]} 22. Ba2 {[%emt 0:03:09]} Nc4 {[%emt 0:02:05]} 23. Bxc4 {[%emt 0:02:44]} Rxc4 {[%emt 0:00:10][%csl Od4] Black attacks a weakness} 24. Nb5 {[%emt 0:00:04]} Nh5 {[%emt 0:08:27] White is weak on the light squares} 25. Qe3 {[%emt 0:01:47]} Qd7 {[%emt 0:03:46]} 26. Nbc3 {[%emt 0:02:20]} (26. Nxa7 $2 Rxc1 27. Rxc1 Bd5 $19 (27... Bxg2 28. Kxg2 Qxa7 29. Kg1 $17)) (26. Rxc4 {seems wilder.} Qd5 27. f3 Qxc4 28. Nbc3) 26... Rdc8 {[%emt 0:04:13]} 27. f3 {[%emt 0:01:59]} Nf6 {[%emt 0:02:20]} 28. Nf4 {[%emt 0:02:24][%cal Be2f4,Bf4d3,Bd3e5,Be5g4,Bg4e5,Be5d7][%mdl 32]} Nd5 {[%emt 0:05:13]} 29. Ncxd5 {[%emt 0:01:34]} Bxd5 {[%emt 0:01:00]} 30. Rxc4 {[%emt 0:00:41]} Rxc4 {[%emt 0:00:46]} 31. Nd3 {[%emt 0:00:21]} Qa4 {[%emt 0:00:43][%csl LRd1,LRd4]} 32. Rd2 {[%emt 0:01:31]} Rc2 {[%emt 0:02:03] And now ...Rxd2 would win.} (32... Rxd4 $6 33. b3 Bxb3 (33... Qxa3 $2 34. Qxd4 Qxb3 35. Ne5 $18) 34. Nb2 Rxd2 35. Nxa4 Rd1+ 36. Kf2 Bxa4 37. Qf4 $16) 33. Ne5 {[%emt 0:02:43]} Rxd2 {[%emt 0:02:51]} 34. Qxd2 $11 {[%emt 0:00:24][%mdl 4096] Endgame KQB-KQN} f6 {[%emt 0:00:40] Dodges h4} (34... h5 $11) 35. Ng4 $14 {[%emt 0:00:14]} f5 {[%emt 0:02:55]} 36. Ne5 {[%emt 0:01:05]} Qe8 {[%emt 0:02:10]} 37. Qb4 {[%emt 0:02:46]} Qc8 $2 {[%emt 0:00:55][%mdl 8192] [#] This costs Black the game.} (37... Qd8 $11 {and Black stays safe.}) 38. Qe7 $1 $18 {[%emt 0:02:50][%cal Oe5d7] Strongly threatening Nd7!.} a6 $2 {[%emt 0:01:41]} (38... Qf8 39. Qxa7 Qd8 40. Qf7+ Kh8) 39. Nd7 {[%emt 0:04:37]} Kh8 {[%emt 0:01:53]} 40. h4 {[%emt 0:01:39]} ({Less strong is} 40. Nxb6 Qc1+ 41. Kf2 h5 $16 (41... Qxb2+ $2 {too greedy.} 42. Kg3 $18)) 40... Bxf3 {[%emt 0:02:42]} 41. gxf3 {[%emt 0:52:41][%cal Od7f6] Nf6! would kill now.} Qc1+ {[%emt 0:50:44]} 42. Kg2 {[%emt 0:00:01][%cal Re7f8]} Qd2+ {[%emt 0:00:00]} 43. Kh3 {[%emt 0:00:00] Weighted Error Value: White=0.07 (flawless) /Black=0.45  Loses game:     	---       	Black=1      Mistake:       	---       	Black=2      Inaccurate:     	White=4     	Black=2      OK:         	White=12    	Black=11     Best:        	White=2     	Black=1      Strong:       	White=1     	---} 1-0

[Event "4NCL Div 1 2024-25"]
[Site "England"]
[Date "2025.01.26"]
[Round "4.47"]
[White "Sowray, Peter J"]
[Black "Badacsonyi, Frankie"]
[Result "0-1"]
[Annotator "TA"]
[ECO "E20"]
[WhiteElo "2205"]
[BlackElo "2266"]
[PlyCount "90"]
[EventDate "2024.11.23"]
[EventType "team-tourn"]
[EventCountry "ENG"]
[SourceTitle "playchess.com"]
[Source "ChessBase"]
[SourceQuality "1"]
[TimeControl "40/6000+30:3000+30"]

{[%evp 15,90,-26,-27,-48,-51,-60,-18,-21,-35,-17,-21,-68,-55,-81,-70,-77,-73,-62,-64,-103,-93,-89,-96,-66,-46,-112,-105,-110,-105,-143,-135,-145,-150,-145,-133,-178,-173,-229,-62,-62,-45,-48,-43,-43,-77,-110,-127,-152,-145,-140,-35,-33,-29,-266,-132,-225,-220,-270,-319,-298,-309,-724,-708,-657,-542,-532,-502,-641,-464,-458,-480,-464,-437,-432,-419,-644,-641]} 1. d4 {[%emt 0:10:05]} d5 {[%emt 0:10:43]} 2. c4 {[%emt 0:00:07]} e6 {[%emt 0:00:13]} 3. Nf3 {[%emt 0:00:06]} Nf6 {[%emt 0:00:14]} 4. g3 {[%emt 0:00:06]} Bb4+ {[%emt 0:01:27]} 5. Nc3 {[%emt 0:01:29]} O-O {[%emt 0:04:56]} 6. Bg2 {[%emt 0:00:18]} dxc4 {[%emt 0:00:25]} 7. O-O {[%emt 0:00:47]} Nc6 {[%emt 0:01:04]} 8. a3 {[%emt 0:01:47] 8.Re1 deserves study.} Be7 {[%emt 0:00:40]} 9. e4 {[%emt 0:00:49] E20: Nimzo-Indian: 4 g3 and 4 f3.} a6 {[%emt 0:02:51]} 10. Be3 {[%emt 0:06:24] 10.Bf4 is not played anymore.} Rb8 {[%emt 0:06:49]} 11. Qe2 {[%emt 0:09:21] White sacrificed a pawn. The position is equal.} b5 {[%emt 0:05:31]} 12. Rad1 {[%emt 0:03:05]} Na5 {[%emt 0:02:05]} 13. Ne5 {[%emt 0:05:08]} (13. d5 $11 {is superior.}) 13... Bb7 $15 {[%emt 0:02:30]} 14. g4 {[%emt 0:06:11]} Nd7 {[%emt 0:08:36]} 15. f4 {[%emt 0:04:04]} f6 {[%emt 0:02:17]} 16. Nf3 {[%emt 0:03:29]} Qe8 $146 {[%emt 0:02:47]} (16... Nb3 17. Qc2 c5 18. d5 exd5 19. Nxd5 Bxd5 20. Rxd5 Qe8 21. Re1 Nb6 22. Rdd1 Rd8 {1-0 Yim,S (2254)-Guo,A (2333) Dallas UT Fall op 2018 (9)}) 17. Bh3 {[%emt 0:08:24]} Rd8 {[%emt 0:18:33]} 18. g5 {[%emt 0:01:55]} f5 {[%emt 0:01:17]} 19. d5 {[%emt 0:05:47]} Nc5 {[%emt 0:07:16]} 20. Ne5 {[%emt 0:02:05]} (20. Nd4 $15) 20... Bd6 $17 {[%emt 0:05:41]} 21. dxe6 {[%emt 0:03:12]} Nxe4 {[%emt 0:00:40]} 22. Nd7 {[%emt 0:04:26]} Nxc3 {[%emt 0:01:34]} 23. bxc3 {[%emt 0:00:08][%cal Od1d6] [#]} Qxe6 {[%emt 0:00:23]} 24. Nxf8 {[%emt 0:00:24]} Rxf8 {[%emt 0:00:01]} 25. Qf2 {[%emt 0:03:09] White is weak on the light squares} Nb3 $1 {[%emt 0:02:24]} (25... Bxa3 26. Rfe1 $17 (26. Bc5 $2 Qc6 $19)) 26. Rfe1 {[%emt 0:02:58]} (26. Bg2 Bxg2 27. Kxg2) 26... Bxa3 $2 {[%emt 0:02:04]} (26... Be4 $19 27. a4 b4 (27... bxa4 $2 28. Bg2 $19)) 27. Bc1 $1 $15 {[%emt 0:08:29]} Qc6 {[%emt 0:00:41]} 28. Bg2 {[%emt 0:00:06]} Qxg2+ {[%emt 0:02:23]} 29. Qxg2 {[%emt 0:00:03]} Bc5+ {[%emt 0:00:07] This pair of bishops is nice.} (29... Bxg2 30. Bxa3 Be4 (30... Bf3 $2 31. Rd7 $18) 31. Bxf8 Kxf8 32. Rd8+ (32. Rd7 c6 $16) 32... Ke7 33. Rh8 $18) 30. Be3 {[%emt 0:02:09]} Bxg2 {[%emt 0:00:40]} 31. Bxc5 {[%emt 0:01:26]} Nxc5 {[%emt 0:00:01]} 32. Kxg2 $17 {[%emt 0:00:03][%mdl 4096] Endgame [#] KRR-KRN} Nd3 {[%emt 0:01:57]} ({Black should try} 32... Rc8 $1 $17 {White must now prevent ...Ne4.} 33. Kf3 Ne4) 33. Re7 $15 {[%emt 0:00:14]} c5 {[%emt 0:18:10]} 34. Ra7 $2 {[%emt 0:04:05] Loses the game.} (34. Kf3 $11) 34... Nxf4+ {[%emt 0:00:00]} (34... b4 $19 {is more deadly.} 35. cxb4 cxb4) 35. Kf3 {[%emt 0:00:10] [#]} (35. Kf1 $17 {is a better defense.} Nd3 36. Ra1) 35... Nd3 $1 $19 {[%emt 0:00:00]} 36. Rxa6 {[%emt 0:00:37]} b4 {[%emt 0:00:00]} 37. cxb4 {[%emt 0:00:30]} cxb4 {[%emt 0:00:00]} 38. Ke3 $2 {[%emt 0:02:54]} (38. Rb6) 38... f4+ {[%emt 0:00:00]} 39. Kd2 {[%emt 0:00:21]} f3 {[%emt 0:00:00]} 40. Rf1 {[%emt 0:01:18]} f2 {[%emt 0:00:00]} 41. Rc6 {[%emt 0:51:24]} Rf4 {[%emt 0:37:25]} 42. Rc7 {[%emt 0:03:18]} b3 {[%emt 0:02:33]} 43. Kc3 {[%emt 0:00:00]} b2 {[%emt 0:00:00]} 44. Rb7 {[%emt 0:00:00]} Re4 {[%emt 0:00:00]} 45. Kd2 {[%emt 0:00:00]} (45. Rb8+ $142 Kf7 46. Rxb2) 45... Rg4 {[%emt 0:00:00] Weighted Error Value: White=0.56/Black=0.26 (precise)   Loses game:     	White=1     	---        Missed win:     	---       	Black=1      Mistake:       	White=6     	Black=2      Inaccurate:     	White=5     	Black=1      OK:         	White=13    	Black=16     Best:        	White=1     	Black=2      Strong:       	White=1     	Black=2} 0-1